bitfinex/quotes_SOLUSD_20220216
["timestamp","ask_amount","ask_price","bid_price","bid_amount"]
[1645038478466,0.00010747,100.47,100.36,0.25]
[1645038478467,1.40105872,100.42,100.36,0.25]
[1645038478666,1.40105872,100.45,100.37,11.93]
[1645038478864,1.40105872,100.45,100.38,0.25]
[1645038479468,1.40105872,100.44,100.38,0.25]
[1645038479670,1.40105872,100.43,100.38,0.25]
[1645038479869,1.40105872,100.43,100.31,2.22707627]
[1645038480090,1.40105872,100.41,100.3,11.93]
[1645038480293,1.40105872,100.4,100.3,11.93]
[1645038480502,28.86223233,100.4,100.28,10.40498333]
[1645038480692,1.40105872,100.39,100.26,1.2005776]
[1645038480892,1.40105872,100.37,100.26,1.2005776]
[1645038481091,1.40105872,100.36,100.26,1.2005776]
[1645038481293,6.106,100.37,100.26,1.2005776]
[1645038481493,6.106,100.37,100.23,11.93]
[1645038481696,10.04818276,100.37,100.23,11.93]
[1645038481894,1.40105872,100.36,100.23,11.93]
[1645038482094,22.8681507,100.36,100.23,11.93]
[1645038482296,22.8681507,100.36,100.23,113.31]
[1645038482495,21.46709198,100.36,100.23,128.857243]
[1645038482695,1.40105872,100.36,100.24,106.9]
[1645038482996,1.40105872,100.36,100.2,16.027243]
[1645038483195,1.40105872,100.36,100.21,112.83]
[1645038483398,21.46811404,100.35,100.21,11.93]
[1645038483599,22.86917276,100.35,100.21,11.93]
[1645038484097,21.46811404,100.35,100.21,11.93]
[1645038484295,13.33105872,100.37,100.22,6.25]
[1645038484494,1.40105872,100.36,100.22,6.25]
[1645038484697,34.79965285,100.36,100.22,6.25]
[1645038484895,3.94218276,100.35,100.22,6.25]
[1645038485095,25.41077689,100.35,100.22,6.25]
[1645038485294,34.79965285,100.35,100.19,11.93]
[1645038485501,28.99571817,100.34,100.16,13.6105776]
[1645038485697,11.93,100.33,100.16,13.1305776]
[1645038485897,4.987,100.32,100.16,13.1305776]
[1645038486097,11.93,100.31,100.16,13.1305776]
[1645038486594,11.93,100.31,100.16,114.0305776]
[1645038486826,1.40105872,100.33,100.18,106.38]
[1645038486998,1.40105872,100.35,100.2,100.9]
[1645038487195,1.40105872,100.37,100.22,100.9]
[1645038487395,1.40105872,100.37,100.23,0.25]
[1645038487597,26.41713618,100.36,100.23,0.25]
[1645038487898,34.7631949,100.36,100.23,0.25]
[1645038488106,21.43213618,100.35,100.23,0.25]
[1645038488700,21.43213618,100.35,100.23,2.48358421]
[1645038488900,21.43213618,100.36,100.25,100.9]
[1645038489098,21.43213618,100.36,100.25,108.088]
[1645038489299,6.0,100.4,100.27,105.9]
[1645038489499,6.0,100.4,100.29,100.9]
[1645038489807,6.0,100.4,100.3,11.93]
[1645038489808,21.41398568,100.39,100.3,11.93]
[1645038489999,21.41398568,100.39,100.28,11.93]
[1645038490202,21.41398568,100.39,100.29,0.25]
[1645038490402,25.35616844,100.39,100.29,0.25]
[1645038490603,1.40105872,100.38,100.29,0.25]
[1645038490807,22.8150444,100.38,100.29,0.25]
[1645038491002,2.54112404,100.37,100.29,0.25]
[1645038491200,1.40105872,100.38,100.29,0.25]
[1645038491400,1.40105872,100.39,100.27,0.25]
[1645038491702,21.40875438,100.37,100.27,0.25]
[1645038492106,1.40105872,100.4,100.28,11.93]
[1645038492302,1.40105872,100.4,100.29,101.15]
[1645038492500,21.57284874,100.39,100.29,101.15]
[1645038492904,21.57284874,100.4,100.29,101.15]
[1645038493409,21.57284874,100.4,100.31,100.9]
[1645038493604,21.57284874,100.4,100.33,100.9]
[1645038493806,21.57284874,100.41,100.33,112.83]
[1645038494004,21.57284874,100.41,100.34,0.25]
[1645038494204,21.57284874,100.43,100.34,0.25]
[1645038494408,21.57284874,100.43,100.36,100.9]
[1645038494605,1.40105872,100.45,100.36,100.9]
[1645038494805,1.40105872,100.45,100.37,0.25]
[1645038495416,22.96851625,100.44,100.37,0.25]
[1645038495818,21.56745753,100.43,100.35,0.25]
[1645038496012,21.06745753,100.43,100.35,0.25]
[1645038496309,22.46851625,100.43,100.35,0.25]
[1645038496511,1.40105872,100.42,100.34,14.9398]
[1645038496709,1.40105872,100.42,100.31,26.8741]
[1645038496916,1.40105872,100.42,100.26,5.48]
[1645038497110,7.40105872,100.41,100.26,101.38]
[1645038497310,1.40105872,100.41,100.27,2.23358421]
[1645038497512,1.40105872,100.4,100.28,117.83]
[1645038497711,1.40105872,100.42,100.34,120.8385]
[1645038497912,1.40105872,100.44,100.34,134.5445]
[1645038498313,1.40105872,100.43,100.36,100.9]
[1645038498517,1.40105872,100.45,100.36,100.9]
[1645038498711,1.40105872,100.45,100.37,0.25]
[1645038499112,1.40105872,100.44,100.37,0.25]
[1645038500111,1.40105872,100.45,100.37,0.25]
[1645038501513,1.40105872,100.44,100.37,0.25]
[1645038501715,1.40105872,100.45,100.37,0.25]
[1645038503716,1.40105872,100.46,100.37,0.25]
[1645038504920,1.40116619,100.47,100.38,112.83]
[1645038505118,1.40116619,100.47,100.4,100.9]
[1645038505317,0.00010747,100.47,100.4,100.9]
[1645038505518,0.00010747,100.47,100.41,0.25]
[1645038505717,0.00010747,100.47,100.42,100.9]
[1645038506019,0.00010747,100.47,100.43,0.25]
[1645038506219,0.00010747,100.47,100.44,100.9]
[1645038506420,0.00010747,100.47,100.45,17.18]
[1645038506720,0.4559251,100.52,100.47,229.9]
[1645038506919,0.4559251,100.52,100.48,0.25]
[1645038507118,0.4559251,100.52,100.45,0.25]
[1645038507722,0.4559251,100.52,100.44,14.926]
[1645038508130,0.4559251,100.52,100.41,100.9]
[1645038508629,0.4559251,100.52,100.41,14.9293]
[1645038508927,6.4559251,100.52,100.4,11.93]
[1645038509127,7.85698382,100.52,100.41,0.25]
[1645038510032,1.40105872,100.51,100.41,0.25]
[1645038510238,1.85698382,100.52,100.4,0.25]
[1645038510841,1.85698382,100.52,100.4,14.9308]
[1645038511042,17.93,100.51,100.35,11.93]
[1645038511243,1.40105872,100.5,100.36,6.0]
[1645038511841,1.40105872,100.5,100.36,118.83]
[1645038512043,7.40105872,100.51,100.36,118.83]
[1645038512243,7.40105872,100.51,100.37,0.25]
[1645038512441,1.85698382,100.52,100.38,100.9]
[1645038512642,1.85698382,100.52,100.37,12.18]
[1645038512845,1.85698382,100.52,100.38,100.9]
[1645038513347,1.40105872,100.51,100.39,0.25]
[1645038513543,16.33995872,100.5,100.39,0.25]
[1645038513749,7.40105872,100.51,100.39,0.25]
[1645038513977,6.0,100.51,100.38,11.93]
[1645038514160,6.0,100.51,100.36,20.68370439]
[1645038514161,1.40105872,100.5,100.36,6.0]
[1645038514359,13.33105872,100.5,100.36,6.0]
[1645038514560,28.27015872,100.5,100.36,20.937]
[1645038514761,1.40105872,100.49,100.36,20.937]
[1645038514959,13.33105872,100.5,100.36,121.837]
[1645038515168,13.33105872,100.5,100.36,106.9]
[1645038515361,2.54112404,100.49,100.36,106.9]
[1645038515562,11.93,100.48,100.36,100.9]
[1645038515862,14.9428,100.47,100.36,100.9]
[1645038516067,26.8728,100.47,100.36,100.9]
[1645038516268,28.27385872,100.47,100.36,100.9]
[1645038516762,26.8728,100.47,100.36,100.9]
[1645038517163,1.40105872,100.47,100.36,115.8383]
[1645038517363,1.40105872,100.48,100.38,100.9]
[1645038517565,1.40105872,100.49,100.38,100.9]
[1645038517769,1.40105872,100.49,100.39,0.25]
[1645038518170,1.40105872,100.48,100.39,0.25]
[1645038518570,1.40105872,100.49,100.4,100.9]
[1645038518773,1.40105872,100.5,100.41,0.25]
[1645038519269,1.40105872,100.49,100.41,0.25]
[1645038519870,1.40105872,100.48,100.37,6.0]
[1645038520071,1.40105872,100.48,100.37,106.9]
[1645038520275,1.40105872,100.47,100.37,106.9]
[1645038520472,1.40105872,100.48,100.37,121.06246922]
[1645038520673,1.40105872,100.49,100.37,121.06246922]
[1645038520872,1.40105872,100.49,100.37,118.83]
[1645038521078,1.40105872,100.48,100.37,118.83]
[1645038521276,12.3859251,100.52,100.39,100.9]
[1645038521277,1.40105872,100.49,100.39,100.9]
[1645038521478,1.40105872,100.5,100.41,100.9]
[1645038522073,1.40105872,100.5,100.42,0.25]
[1645038522287,0.4559251,100.52,100.42,2.48246922]
[1645038522288,1.40105872,100.51,100.42,2.48246922]
[1645038522474,1.85698382,100.52,100.43,100.9]
[1645038522673,0.4559251,100.52,100.43,115.06246922]
[1645038522874,1.85698382,100.52,100.44,0.25]
[1645038523283,1.40105872,100.51,100.44,0.25]
[1645038523473,1.40105872,100.51,100.4,61.67116037]
[1645038523474,1.40105872,100.51,100.4,11.91046037]
[1645038523674,1.40105872,100.51,100.4,14.15675598]
[1645038523977,1.40105872,100.5,100.41,2.22675598]
[1645038524175,1.40105872,100.5,100.42,11.93]
[1645038524375,1.85698382,100.52,100.42,11.93]
[1645038524575,1.85698382,100.52,100.43,100.9]
[1645038524776,1.85698382,100.52,100.43,101.15]
[1645038524974,1.40105872,100.51,100.43,101.15]
[1645038525974,1.85698382,100.52,100.43,0.25]
[1645038526276,1.40105872,100.51,100.44,2.22675598]
[1645038526481,1.40105872,100.5,100.42,0.25]
[1645038526880,1.85698382,100.52,100.41,0.25]
[1645038527090,1.40105872,100.51,100.41,0.25]
[1645038527382,1.40105872,100.51,100.42,100.9]
[1645038527582,1.85698382,100.52,100.41,26.8599]
[1645038527781,1.85698382,100.52,100.42,0.25]
[1645038527980,1.85698382,100.52,100.42,101.15]
[1645038528183,1.40105872,100.51,100.42,101.15]
[1645038528382,1.40105872,100.51,100.42,103.37675598]
[1645038528584,1.85698382,100.52,100.42,118.30505598]
[1645038528783,1.85698382,100.52,100.44,100.9]
[1645038528985,0.4559251,100.52,100.44,112.83]
[1645038529184,0.4559251,100.52,100.45,2.47675598]
[1645038529483,0.4559251,100.52,100.45,0.25]
[1645038529884,0.4559251,100.52,100.45,116.0741]
[1645038531607,0.4559251,100.52,100.41,2.22675598]
[1645038531901,0.4559251,100.52,100.39,11.93]
[1645038531902,1.40105872,100.51,100.39,11.93]
[1645038532101,1.40105872,100.51,100.39,14.15675598]
[1645038532501,1.40105872,100.51,100.4,100.9]
[1645038532930,1.40105872,100.51,100.4,115.8313]
[1645038533524,1.85698382,100.52,100.41,109.12675598]
[1645038534128,1.85698382,100.52,100.42,0.25]
[1645038534331,6.37705872,100.51,100.42,0.25]
[1645038534524,1.40105872,100.51,100.42,0.25]
[1645038534925,1.40105872,100.51,100.41,6.0]
[1645038535126,1.40105872,100.5,100.41,6.0]
[1645038535326,1.40105872,100.49,100.41,6.0]
[1645038536634,1.40105872,100.5,100.41,6.0]
[1645038536831,1.40105872,100.5,100.42,0.25]
[1645038537232,1.40105872,100.5,100.42,2.47675598]
[1645038537432,1.85698382,100.52,100.44,100.9]
[1645038537732,0.4559251,100.52,100.46,100.9]
[1645038538132,0.4559251,100.52,100.47,0.25]
[1645038539135,0.4559251,100.52,100.48,100.9]
[1645038539334,0.4559251,100.52,100.49,0.25]
[1645038539934,3.03219997,100.51,100.49,0.25]
[1645038540150,0.4559251,100.52,100.49,0.25]
[1645038540552,0.4559251,100.52,100.46,0.25]
[1645038540754,0.4559251,100.52,100.47,100.9]
[1645038541154,0.4559251,100.52,100.48,0.25]
[1645038541355,0.4559251,100.52,100.45,12.18]
[1645038541554,0.4559251,100.52,100.46,100.9]
[1645038541951,0.4559251,100.52,100.47,0.25]
[1645038545282,0.4559251,100.52,100.44,127.7563]
[1645038545482,0.4559251,100.52,100.41,67.6843]
[1645038545483,5.5749251,100.52,100.41,67.6843]
[1645038545680,6.97598382,100.52,100.41,74.91105598]
[1645038545884,5.5749251,100.52,100.41,74.91105598]
[1645038546081,0.4559251,100.52,100.41,74.91105598]
[1645038546285,0.4559251,100.52,100.42,5.0]
[1645038546482,0.4559251,100.52,100.44,100.9]
[1645038546682,0.4559251,100.52,100.46,115.8224]
[1645038546885,0.4559251,100.52,100.46,127.7524]
[1645038547083,0.4559251,100.52,100.47,0.25]
[1645038547984,0.4559251,100.52,100.47,2.47675598]
[1645038548187,0.4559251,100.52,100.47,118.29755598]
[1645038548385,0.4559251,100.52,100.45,2.22675598]
[1645038548686,0.4559251,100.52,100.41,67.6841]
[1645038548885,0.4559251,100.52,100.42,2.22675598]
[1645038549388,0.4559251,100.52,100.42,118.05485598]
[1645038549587,1.85698382,100.52,100.42,118.05485598]
[1645038549792,1.40105872,100.51,100.4,11.93]
[1645038549989,1.40105872,100.5,100.39,2.22675598]
[1645038550187,1.40105872,100.49,100.39,103.12675598]
[1645038550587,1.40105872,100.49,100.41,100.9]
[1645038550789,1.40105872,100.5,100.4,11.93]
[1645038551188,1.40105872,100.5,100.41,6.0]
[1645038551389,1.40105872,100.49,100.41,6.0]
[1645038551788,1.40105872,100.49,100.34,11.93]
[1645038551992,1.40105872,100.46,100.33,10.40039694]
[1645038552192,1.40105872,100.45,100.32,100.9]
[1645038552389,11.93,100.45,100.29,22.33904365]
[1645038552688,13.33105872,100.45,100.29,22.33904365]
[1645038552891,15.87218276,100.45,100.29,22.33904365]
[1645038553290,1.40105872,100.43,100.3,100.9]
[1645038553490,1.40105872,100.43,100.3,106.9]
[1645038553693,1.40105872,100.43,100.31,0.25]
[1645038553892,1.40105872,100.42,100.31,0.25]
[1645038554092,16.34875872,100.44,100.31,0.25]
[1645038554993,16.34875872,100.44,100.3,106.9]
[1645038555603,1.40105872,100.45,100.3,132.71904328]
[1645038555803,1.40105872,100.46,100.31,5.0]
[1645038556002,1.40105872,100.46,100.33,100.9]
[1645038556204,1.40105872,100.47,100.33,100.9]
[1645038556402,1.40105872,100.47,100.34,0.25]
[1645038556606,1.40105872,100.46,100.35,100.9]
[1645038556809,1.40105872,100.47,100.36,0.25]
[1645038557607,6.0,100.48,100.37,105.9]
[1645038557806,1.40105872,100.49,100.4,100.9]
[1645038558007,1.40105872,100.5,100.4,100.9]
[1645038558211,1.40105872,100.5,100.41,0.25]
[1645038558410,1.40105872,100.51,100.41,0.25]
[1645038558609,1.40105872,100.51,100.41,2.48044501]
[1645038558809,1.85698382,100.52,100.41,2.48044501]
[1645038559009,1.40105872,100.51,100.41,0.25]
[1645038559608,13.33105872,100.5,100.4,0.25]
[1645038559813,1.40105872,100.49,100.35,0.25]
[1645038560011,1.40105872,100.48,100.35,0.25]
[1645038560210,22.86045435,100.48,100.35,0.25]
[1645038560412,22.86045435,100.48,100.34,0.25]
[1645038560613,3.94218276,100.48,100.34,0.25]
[1645038560811,1.40105872,100.47,100.34,0.25]
[1645038561012,1.40105872,100.48,100.34,12.18]
[1645038561212,1.40105872,100.48,100.35,100.9]
[1645038561413,1.40105872,100.48,100.36,0.25]
[1645038561812,6.0,100.47,100.36,0.25]
[1645038562012,1.40105872,100.49,100.37,112.83]
[1645038562212,6.0,100.48,100.37,100.9]
[1645038562418,6.0,100.48,100.38,0.25]
[1645038563431,6.0,100.48,100.36,14.9371]
[1645038563432,6.0,100.48,100.37,0.25]
[1645038563834,6.0,100.48,100.37,101.15]
[1645038565038,1.40105872,100.49,100.37,0.25]
[1645038565234,6.0,100.48,100.37,0.25]
[1645038566235,6.0,100.48,100.36,14.9371]
[1645038566737,6.0,100.48,100.34,8.88904328]
[1645038566738,7.40105872,100.48,100.34,14.9411]
[1645038566948,6.0,100.48,100.34,14.9411]
[1645038567138,6.0,100.48,100.35,100.9]
[1645038567337,6.0,100.48,100.35,112.83]
[1645038567545,6.0,100.48,100.35,11.93]
[1645038567738,22.88351847,100.47,100.34,14.9412]
[1645038567938,20.34239443,100.47,100.35,0.25]
[1645038568138,1.40105872,100.47,100.35,0.25]
[1645038568741,1.40105872,100.47,100.35,6.0]
[1645038569139,7.40105872,100.48,100.35,6.0]
[1645038569341,7.40105872,100.48,100.36,100.9]
[1645038569941,6.0,100.48,100.36,100.9]
[1645038570148,6.0,100.48,100.37,0.25]
[1645038570745,91.0,100.47,100.36,112.58]
[1645038570946,7.40105872,100.48,100.35,30.54927106]
[1645038571145,7.40105872,100.48,100.35,20.9388]
[1645038571348,3.94218276,100.47,100.35,6.0]
[1645038571545,15.87218276,100.47,100.35,6.0]
[1645038571945,2.54112404,100.46,100.35,6.0]
[1645038572546,3.44218276,100.46,100.33,14.9427]
[1645038572748,15.37218276,100.46,100.31,14.9458]
[1645038572946,2.54112404,100.45,100.32,100.9]
[1645038573148,13.33105872,100.46,100.32,101.15]
[1645038573547,1.40105872,100.45,100.32,101.15]
[1645038573747,1.40105872,100.45,100.33,6.0]
[1645038573969,3.94218276,100.45,100.34,0.25]
[1645038574249,1.40105872,100.45,100.34,0.25]
[1645038574448,0.25,100.44,100.34,0.25]
[1645038575252,1.40105872,100.46,100.34,0.25]
[1645038575450,1.40105872,100.46,100.34,101.15]
[1645038575851,1.40105872,100.46,100.34,0.25]
[1645038576454,3.94218276,100.46,100.33,6.0]
[1645038576651,11.93,100.45,100.33,6.0]
[1645038576852,13.33105872,100.45,100.33,6.0]
[1645038577056,15.87218276,100.45,100.33,6.0]
[1645038577253,13.33105872,100.45,100.34,100.9]
[1645038577552,1.40105872,100.46,100.34,115.8402]
[1645038577761,1.40105872,100.46,100.35,0.25]
[1645038577960,6.0,100.48,100.35,2.48172038]
[1645038577961,1.40105872,100.47,100.35,2.48172038]
[1645038578151,1.40105872,100.47,100.35,0.25]
[1645038578353,6.0,100.48,100.35,0.25]
[1645038578354,1.40105872,100.46,100.35,0.25]
[1645038578753,1.40105872,100.45,100.35,0.25]
[1645038578954,1.65105872,100.45,100.34,0.25]
[1645038579652,1.40105872,100.45,100.34,0.25]
[1645038579853,1.40105872,100.45,100.35,100.9]
[1645038580055,8.79945163,100.48,100.35,100.9]
[1645038580056,1.40105872,100.46,100.35,100.9]
[1645038580257,1.40105872,100.46,100.36,0.25]
[1645038581456,1.40105872,100.47,100.36,108.291]
[1645038581654,1.40105872,100.48,100.38,100.9]
[1645038581854,1.40105872,100.48,100.38,112.83]
[1645038582054,1.40105872,100.48,100.4,100.9]
[1645038582253,0.4559251,100.52,100.4,100.9]
[1645038582254,1.40105872,100.49,100.4,100.9]
[1645038582456,1.40105872,100.49,100.41,0.25]
[1645038582654,1.40105872,100.49,100.39,0.25]
[1645038582655,1.40105872,100.47,100.39,0.25]
[1645038582857,1.40105872,100.46,100.39,0.25]
[1645038583156,1.40105872,100.46,100.35,10.20774884]
[1645038583353,1.40105872,100.46,100.35,113.33946922]
[1645038583955,1.40105872,100.46,100.36,14.9383]
[1645038584155,1.65105872,100.45,100.35,10.20774884]
[1645038584355,1.65105872,100.45,100.34,105.879]
[1645038584655,1.40105872,100.44,100.34,100.9]
[1645038584857,1.40105872,100.44,100.33,2.23172038]
[1645038585056,1.40105872,100.44,100.33,4.98]
[1645038585057,6.0,100.43,100.33,4.98]
[1645038585261,1.40105872,100.42,100.3,22.84409076]
[1645038585466,1.40105872,100.41,100.29,105.88]
[1645038585661,1.40105872,100.41,100.29,100.9]
[1645038585865,1.40105872,100.41,100.29,108.11372038]
[1645038586060,1.40105872,100.41,100.29,103.13172038]
[1645038586267,1.40105872,100.41,100.3,106.9]
[1645038586467,1.40105872,100.42,100.3,106.9]
[1645038586670,1.40105872,100.42,100.32,100.9]
[1645038586867,7.40105872,100.43,100.33,0.25]
[1645038587069,7.40105872,100.43,100.33,2.48172038]
[1645038587267,7.40105872,100.43,100.33,0.25]
[1645038587463,1.40105872,100.43,100.34,2.23172038]
[1645038587662,1.40105872,100.43,100.34,103.13172038]
[1645038587867,1.40105872,100.44,100.35,0.25]
[1645038588068,1.40105872,100.45,100.35,2.48172038]
[1645038588363,1.40105872,100.45,100.36,2.23172038]
[1645038588563,1.40105872,100.44,100.35,0.25]
[1645038588763,7.40105872,100.44,100.35,0.25]
[1645038588965,1.65105872,100.43,100.34,0.25]
[1645038590267,1.65105872,100.43,100.29,14.9485]
[1645038590467,1.40105872,100.41,100.26,22.82057465]
[1645038590675,1.40105872,100.4,100.29,6.0]
[1645038590867,13.33105872,100.41,100.29,6.0]
[1645038591267,1.40105872,100.4,100.29,6.0]
[1645038591468,1.40105872,100.4,100.3,2.23172038]
[1645038591667,1.40105872,100.41,100.3,2.23172038]
[1645038591867,1.40105872,100.42,100.3,2.23172038]
[1645038592267,1.40105872,100.42,100.31,0.25]
[1645038592672,1.40105872,100.42,100.31,2.48172038]
[1645038593067,1.40105872,100.43,100.31,2.48172038]
[1645038593470,7.40105872,100.44,100.31,2.48172038]
[1645038593672,1.40105872,100.43,100.31,103.38172038]
[1645038593874,1.40105872,100.44,100.31,122.79872038]
[1645038594775,1.40105872,100.44,100.32,4.981]
[1645038595272,1.40105872,100.44,100.33,0.25]
[1645038595473,1.40105872,100.43,100.33,0.25]
[1645038596074,3.94218276,100.43,100.33,0.25]
[1645038596278,1.40105872,100.42,100.33,0.25]
[1645038596701,1.40105872,100.44,100.33,0.25]
[1645038596902,1.40105872,100.45,100.34,2.23172038]
[1645038597302,1.40105872,100.45,100.35,0.25]
[1645038597502,1.40105872,100.45,100.35,106.63]
[1645038597704,1.40105872,100.47,100.36,2.23172038]
[1645038597902,1.40105872,100.47,100.37,0.25]
[1645038598105,1.40105872,100.46,100.37,0.25]
[1645038598304,1.40105872,100.46,100.37,1.4168485]
[1645038599104,1.40105872,100.45,100.37,1.4168485]
[1645038599708,1.40105872,100.45,100.37,1.1668485]
[1645038600109,1.40105872,100.44,100.37,1.1668485]
[1645038600306,1.40105872,100.43,100.37,1.1668485]
[1645038601309,1.40105872,100.43,100.31,117.0125485]
[1645038601508,1.40105872,100.43,100.31,16.1125485]
[1645038601710,3.94218276,100.42,100.31,1.1668485]
[1645038601909,1.40105872,100.4,100.31,1.1668485]
[1645038602108,13.33105872,100.39,100.31,1.1668485]
[1645038602308,1.40105872,100.38,100.31,1.1668485]
[1645038602507,1.40105872,100.39,100.31,1.1668485]
[1645038603011,13.33105872,100.41,100.31,1.1668485]
[1645038603209,12.83105872,100.41,100.31,1.1668485]
[1645038603409,1.40105872,100.41,100.32,2.23172038]
[1645038603615,1.40105872,100.42,100.33,100.9]
[1645038603807,1.40105872,100.42,100.34,0.25]
[1645038604011,1.40105872,100.43,100.34,2.48172038]
[1645038604212,1.40105872,100.42,100.34,2.48172038]
[1645038604612,1.40105872,100.43,100.35,1.1668485]
[1645038604810,1.40105872,100.43,100.36,0.25]
[1645038605211,1.40105872,100.44,100.36,0.25]
[1645038605512,1.40105872,100.45,100.37,2.23172038]
[1645038605713,1.40105872,100.45,100.36,6.25]
[1645038605909,1.40105872,100.45,100.36,0.25]
[1645038606309,1.40105872,100.44,100.36,0.25]
[1645038606509,1.40105872,100.44,100.35,1.1668485]
[1645038607312,0.25,100.43,100.35,1.1668485]
[1645038607512,1.65105872,100.43,100.35,1.1668485]
[1645038607810,1.40105872,100.42,100.36,0.25]
[1645038608111,1.65105872,100.43,100.36,0.25]
[1645038608714,6.0,100.42,100.36,0.25]
[1645038609114,47.35969689,100.39,100.33,0.25]
[1645038609317,94.71939378,100.39,100.33,0.25]
[1645038611113,94.71939378,100.39,100.33,2.48172038]
[1645038611417,94.71939378,100.39,100.34,1.1668485]
[1645038611816,94.71939378,100.39,100.35,0.25]
[1645038614117,47.35969689,100.39,100.35,0.25]
[1645038614318,47.35969689,100.37,100.35,0.25]
[1645038614520,3.03219997,100.36,100.35,0.25]
[1645038614817,50.39189686,100.36,100.35,0.25]
[1645038615217,50.39189686,100.36,100.32,0.25]
[1645038615418,50.39189686,100.36,100.35,1.1668485]
[1645038615820,50.39189686,100.36,100.35,1.4168485]
[1645038617322,47.35969689,100.36,100.35,1.4168485]
[1645038618122,50.39189686,100.36,100.35,1.4168485]
[1645038618423,47.35969689,100.36,100.35,1.4168485]
[1645038619223,47.35969689,100.36,100.35,7.4168485]
[1645038619622,94.71939378,100.36,100.35,7.4168485]
[1645038621425,94.71939378,100.36,100.35,108.3168485]
[1645038622025,0.00939378,100.36,100.35,110.54817254]
[1645038624628,0.00939378,100.36,100.35,9.64817254]
[1645038624831,1.40105872,100.44,100.35,9.64817254]
[1645038625228,1.40105872,100.44,100.36,0.25]
[1645038625429,1.40105872,100.44,100.35,3.39817254]
[1645038625632,1.40105872,100.42,100.37,1.1668485]
[1645038627029,116.0,100.4,100.33,2.23132404]
[1645038627228,116.0,100.4,100.27,11.93]
[1645038627429,4.983,100.39,100.27,11.93]
[1645038627629,1.40105872,100.39,100.28,6.0]
[1645038627830,1.40105872,100.38,100.28,6.0]
[1645038629032,1.40105872,100.38,100.24,22.43487106]
[1645038629232,17.49712404,100.37,100.24,14.959]
[1645038629436,18.89818276,100.37,100.24,14.959]
[1645038629636,175.64112404,100.36,100.21,10.50487106]
[1645038629834,175.64112404,100.36,100.2,2.23132404]
[1645038629835,1.40105872,100.35,100.2,2.23132404]
[1645038630035,1.40105872,100.34,100.2,2.23132404]
[1645038630233,1.40105872,100.34,100.21,6.0]
[1645038630434,14.964,100.31,100.21,20.9644]
[1645038631034,14.964,100.31,100.21,14.9644]
[1645038631238,14.964,100.31,100.18,61.8127]
[1645038631636,14.964,100.31,100.19,17.19752404]
[1645038632137,14.964,100.31,100.2,2.23132404]
[1645038632737,14.9622,100.33,100.2,17.19602404]
[1645038632936,13.33105872,100.36,100.2,56.83001969]
[1645038633136,1.40105872,100.36,100.21,103.13132404]
[1645038633336,1.40105872,100.36,100.21,115.06132404]
[1645038633637,13.33105872,100.36,100.22,8.23132404]
[1645038633836,15.87218276,100.36,100.22,8.48132404]
[1645038634049,14.47112404,100.36,100.22,6.25]
[1645038634250,15.87218276,100.36,100.22,0.25]
[1645038634451,1.40105872,100.35,100.22,0.25]
[1645038634654,1.40105872,100.35,100.22,2.48132404]
[1645038634850,1.40105872,100.35,100.23,0.25]
[1645038634851,14.9597,100.35,100.23,0.25]
[1645038635252,2.54112404,100.34,100.23,0.25]
[1645038635453,30.72178276,100.36,100.23,0.25]
[1645038635653,35.70678276,100.36,100.23,0.25]
[1645038636053,30.72178276,100.36,100.21,107.15]
[1645038636553,0.25,100.35,100.21,109.38132404]
[1645038636954,14.9644,100.32,100.21,124.34572404]
[1645038637159,14.9644,100.32,100.21,23.44572404]
[1645038637553,14.9644,100.32,100.21,17.44572404]
[1645038637782,14.9644,100.32,100.21,0.25]
[1645038638182,26.8944,100.32,100.17,2.23132404]
[1645038638385,14.9689,100.28,100.17,2.23132404]